[Event "Open Gent FIDE-rated 2023"]
[Site "Gent, Belgium"]
[Date "2023.07.17"]
[Round "6.1"]
[White "Decker, Nils"]
[Black "Goudriaan, Etienne"]
[Result "1-0"]
[TimeControl "90'+30''"]
[BlackTitle "IM"]
[WhiteFideId "4699670"]
[WhiteElo "2109"]
[BlackElo "2322"]

1. e4 {[%clk 01:30:56]} {[%emt 00:00:03]} c6 {[%clk 01:30:45]} {[%emt
00:00:16]} 2. d4 {[%clk 01:31:20]} {[%emt 00:00:06]} d5 {[%clk 01:31:12]}
{[%emt 00:00:03]} 3. e5 {[%clk 01:31:43]} {[%emt 00:00:07]} Bf5 {[%clk
01:31:24]} {[%emt 00:00:17]} 4. h4 {[%clk 01:32:07]} {[%emt 00:00:06]} h5
{[%clk 01:31:25]} {[%emt 00:00:29]} 5. Bd3 {[%clk 01:32:34]} {[%emt 00:00:04]}
Bxd3 {[%clk 01:31:46]} {[%emt 00:00:08]} 6. Qxd3 {[%clk 01:33:01]} {[%emt
00:00:03]} Qa5+ {[%clk 01:31:57]} {[%emt 00:00:19]} 7. Nd2 {[%clk 01:33:27]}
{[%emt 00:00:05]} e6 {[%clk 01:32:19]} {[%emt 00:00:07]} 8. Ngf3 {[%clk
01:33:00]} {[%emt 00:00:58]} Nh6 {[%clk 01:31:14]} {[%emt 00:01:33]} 9. O-O
{[%clk 01:29:07]} {[%emt 00:04:25]} Nf5 {[%clk 01:30:56]} {[%emt 00:00:47]} 10.
c3 {[%clk 01:00:13]} {[%emt 00:29:24]} Qa6 {[%clk 01:30:15]} {[%emt 00:01:10]}
11. Qb1 {[%clk 00:58:26]} {[%emt 00:02:18]} c5 {[%clk 01:18:58]} {[%emt
00:11:47]} 12. c4 {[%clk 00:56:22]} {[%emt 00:02:33]} Nxd4 {[%clk 01:11:58]}
{[%emt 00:07:29]} 13. Nxd4 {[%clk 00:49:15]} {[%emt 00:07:38]} cxd4 {[%clk
01:09:15]} {[%emt 00:03:13]} 14. cxd5 {[%clk 00:49:21]} {[%emt 00:00:23]} exd5
{[%clk 00:55:33]} {[%emt 00:14:12]} 15. e6 {[%clk 00:41:41]} {[%emt 00:08:11]}
Qxe6 {[%clk 00:47:33]} {[%emt 00:08:31]} 16. Nf3 {[%clk 00:41:58]} {[%emt
00:00:12]} Be7 {[%clk 00:46:27]} {[%emt 00:01:35]} 17. Re1 {[%clk 00:39:24]}
{[%emt 00:03:04]} Qg4 {[%clk 00:46:01]} {[%emt 00:00:56]} 18. Bg5 {[%clk
00:30:05]} {[%emt 00:09:49]} Nc6 {[%clk 00:46:26]} {[%emt 00:00:06]} 19. Ne5
{[%clk 00:26:10]} {[%emt 00:04:25]} Nxe5 {[%clk 00:45:55]} {[%emt 00:01:01]} 20.
Rxe5 {[%clk 00:26:34]} {[%emt 00:00:06]} f6 {[%clk 00:42:11]} {[%emt 00:04:14]}
21. Qg6+ {[%clk 00:26:02]} {[%emt 00:01:02]} Kf8 {[%clk 00:42:40]} {[%emt
00:00:02]} 22. Rxe7 {[%clk 00:23:11]} {[%emt 00:03:20]} Kxe7 {[%clk 00:43:08]}
{[%emt 00:00:01]} 23. f3 {[%clk 00:19:31]} {[%emt 00:04:10]} Qc8 {[%clk
00:37:57]} {[%emt 00:05:41]} 24. Qxg7+ {[%clk 00:19:35]} {[%emt 00:00:26]} Kd6
{[%clk 00:38:26]} {[%emt 00:00:01]} 25. Bf4+ {[%clk 00:16:54]} {[%emt
00:03:11]} Ke6 {[%clk 00:37:30]} {[%emt 00:01:27]} 26. Re1+ {[%clk 00:17:08]}
{[%emt 00:00:15]} Kf5 {[%clk 00:37:55]} {[%emt 00:00:06]} 27. Bd6 {[%clk
00:16:19]} {[%emt 00:01:18]} Qg8 {[%clk 00:37:03]} {[%emt 00:01:22]} 28. g4+
{[%clk 00:16:36]} {[%emt 00:00:13]} hxg4 {[%clk 00:37:30]} {[%emt 00:00:04]} 29.
fxg4# {[%emt 00:00:04]} 1-0

[Event "Open Gent FIDE-rated 2023"]
[Site "Gent, Belgium"]
[Date "2023.07.17"]
[Round "6.2"]
[White "van Osch, Mees"]
[Black "Godde, Matthias"]
[Result "1-0"]
[TimeControl "90'+30''"]
[WhiteTitle "FM"]
[WhiteElo "2320"]
[BlackElo "2047"]

1. e4 {[%clk 01:30:58]} {[%emt 00:00:02]} c5 {[%clk 01:30:59]} {[%emt
00:00:01]} 2. Nf3 {[%clk 01:31:25]} {[%emt 00:00:03]} Nc6 {[%clk 01:31:21]}
{[%emt 00:00:08]} 3. d4 {[%clk 01:31:51]} {[%emt 00:00:04]} cxd4 {[%clk
01:31:48]} {[%emt 00:00:02]} 4. Nxd4 {[%clk 01:32:18]} {[%emt 00:00:03]} Nf6
{[%clk 01:32:08]} {[%emt 00:00:10]} 5. Nc3 {[%clk 01:32:47]} {[%emt 00:00:01]}
e5 {[%clk 01:32:31]} {[%emt 00:00:06]} 6. Ndb5 {[%clk 01:33:14]} {[%emt
00:00:04]} d6 {[%clk 01:33:00]} {[%emt 00:00:02]} 7. Nd5 {[%clk 01:33:38]}
{[%emt 00:00:06]} Nxd5 {[%clk 01:33:07]} {[%emt 00:00:23]} 8. exd5 {[%clk
01:34:05]} {[%emt 00:00:03]} Ne7 {[%clk 01:33:08]} {[%emt 00:00:28]} 9. c3
{[%clk 01:34:32]} {[%emt 00:00:04]} Nf5 {[%clk 01:33:13]} {[%emt 00:00:25]} 10.
Bd3 {[%clk 01:34:57]} {[%emt 00:00:04]} Be7 {[%clk 01:31:52]} {[%emt 00:01:51]}
11. O-O {[%clk 01:35:13]} {[%emt 00:00:14]} O-O {[%clk 01:31:02]} {[%emt
00:01:20]} 12. a4 {[%clk 01:35:31]} {[%emt 00:00:12]} Nh4 {[%clk 01:25:42]}
{[%emt 00:05:50]} 13. f4 {[%clk 01:34:53]} {[%emt 00:01:09]} a6 {[%clk
01:23:33]} {[%emt 00:02:40]} 14. Na3 {[%clk 01:35:12]} {[%emt 00:00:10]} f5
{[%clk 01:16:42]} {[%emt 00:07:21]} 15. Nc4 {[%clk 01:35:09]} {[%emt 00:00:33]}
Ng6 {[%clk 01:16:06]} {[%emt 00:01:06]} 16. fxe5 {[%clk 01:31:06]} {[%emt
00:04:33]} Nxe5 {[%clk 01:12:51]} {[%emt 00:03:45]} 17. Nxe5 {[%clk 01:25:42]}
{[%emt 00:05:54]} dxe5 {[%clk 01:12:36]} {[%emt 00:00:45]} 18. Qb3 {[%clk
01:25:48]} {[%emt 00:00:24]} Bc5+ {[%clk 01:05:13]} {[%emt 00:07:53]} 19. Kh1
{[%clk 01:26:12]} {[%emt 00:00:06]} Bd6 {[%clk 01:05:22]} {[%emt 00:00:21]} 20.
Bc2 {[%clk 01:22:18]} {[%emt 00:04:24]} b5 {[%clk 00:53:53]} {[%emt 00:12:00]}
21. axb5 {[%clk 00:58:25]} {[%emt 00:24:24]} Rb8 {[%clk 00:54:15]} {[%emt
00:00:08]} 22. Be3 {[%clk 00:37:28]} {[%emt 00:21:26]} Rxb5 {[%clk 00:50:44]}
{[%emt 00:04:01]} 23. Qa2 {[%clk 00:27:47]} {[%emt 00:10:11]} Qh4 {[%clk
00:46:39]} {[%emt 00:04:35]} 24. Bf2 {[%clk 00:17:16]} {[%emt 00:11:01]} Qh6
{[%clk 00:39:26]} {[%emt 00:07:43]} 25. c4 {[%clk 00:17:29]} {[%emt 00:00:17]}
e4 {[%clk 00:37:20]} {[%emt 00:02:36]} 26. Bg1 {[%clk 00:17:53]} {[%emt
00:00:06]} Rb7 {[%clk 00:28:59]} {[%emt 00:08:52]} 27. c5 {[%clk 00:16:19]}
{[%emt 00:02:05]} Be5 {[%clk 00:28:49]} {[%emt 00:00:40]} 28. Rab1 {[%clk
00:16:48]} {[%emt 00:00:01]} Rf6 {[%clk 00:26:10]} {[%emt 00:03:08]} 29. d6+
{[%clk 00:16:07]} {[%emt 00:01:11]} Be6 {[%clk 00:24:31]} {[%emt 00:02:09]} 30.
Qxa6 {[%clk 00:16:31]} {[%emt 00:00:06]} Rbf7 {[%clk 00:15:42]} {[%emt
00:09:18]} 31. Qa4 {[%clk 00:16:40]} {[%emt 00:00:21]} Qh4 {[%clk 00:04:09]}
{[%emt 00:12:04]} 32. Bb3 {[%clk 00:07:44]} {[%emt 00:09:26]} Bxb3 {[%clk
00:03:08]} {[%emt 00:01:31]} 33. Qe8+ {[%clk 00:07:47]} {[%emt 00:00:27]} Rf8
{[%clk 00:03:32]} {[%emt 00:00:06]} 34. Qxe5 {[%clk 00:08:12]} {[%emt
00:00:05]} f4 {[%clk 00:03:24]} {[%emt 00:00:38]} 35. Qxe4 {[%clk 00:07:38]}
{[%emt 00:01:04]} Rf5 {[%clk 00:03:34]} {[%emt 00:00:20]} 36. Rbd1 {[%clk
00:05:03]} {[%emt 00:03:04]} Bxd1 {[%clk 00:02:40]} {[%emt 00:01:25]} 37. Rxd1
{[%clk 00:05:27]} {[%emt 00:00:06]} Qh5 {[%clk 00:02:33]} {[%emt 00:00:36]} 38.
Qf3 {[%clk 00:05:45]} {[%emt 00:00:12]} Qe8 {[%clk 00:02:39]} {[%emt 00:00:24]}
39. d7 {[%clk 00:05:30]} {[%emt 00:00:46]} Qd8 {[%clk 00:02:55]} {[%emt
00:00:14]} 40. c6 {[%clk 00:05:46]} {[%emt 00:00:14]} R5f6 {[%clk 00:02:49]}
{[%emt 00:00:35]} 41. Qd5+ {[%clk 00:05:28]} {[%emt 00:00:48]} R6f7 {[%clk
00:02:46]} {[%emt 00:00:33]} 42. Bc5 {[%clk 00:04:47]} {[%emt 00:01:11]} 1-0

[Event "Open Gent FIDE-rated 2023"]
[Site "Gent, Belgium"]
[Date "2023.07.17"]
[Round "6.3"]
[White "Dreelinck, Adriaan"]
[Black "Bekker, Stefan"]
[Result "1-0"]
[TimeControl "90'+30''"]
[BlackTitle "FM"]
[WhiteElo "2214"]
[BlackElo "2286"]

1. d4 {[%clk 01:30:53]} {[%emt 00:00:06]} Nf6 {[%clk 01:30:53]} {[%emt
00:00:07]} 2. c4 {[%clk 01:31:13]} {[%emt 00:00:10]} e6 {[%clk 01:31:19]}
{[%emt 00:00:05]} 3. Nc3 {[%clk 01:31:27]} {[%emt 00:00:16]} Bb4 {[%clk
01:31:43]} {[%emt 00:00:06]} 4. e3 {[%clk 01:31:36]} {[%emt 00:00:21]} O-O
{[%clk 01:31:46]} {[%emt 00:00:27]} 5. Bd2 {[%clk 01:31:50]} {[%emt 00:00:15]}
d5 {[%clk 01:31:01]} {[%emt 00:01:15]} 6. Nf3 {[%clk 01:31:59]} {[%emt
00:00:21]} b6 {[%clk 01:31:15]} {[%emt 00:00:17]} 7. cxd5 {[%clk 01:32:17]}
{[%emt 00:00:11]} exd5 {[%clk 01:31:38]} {[%emt 00:00:07]} 8. Bd3 {[%clk
01:32:32]} {[%emt 00:00:15]} Re8 {[%clk 01:31:04]} {[%emt 00:01:05]} 9. Rc1
{[%clk 01:32:02]} {[%emt 00:01:00]} Bb7 {[%clk 01:28:19]} {[%emt 00:03:15]} 10.
O-O {[%clk 01:31:33]} {[%emt 00:00:58]} Bf8 {[%clk 01:27:41]} {[%emt 00:01:08]}
11. Ne5 {[%clk 01:30:39]} {[%emt 00:01:24]} c5 {[%clk 01:24:28]} {[%emt
00:03:43]} 12. f4 {[%clk 01:28:37]} {[%emt 00:02:32]} Nc6 {[%clk 01:22:42]}
{[%emt 00:02:16]} 13. Bb5 {[%clk 01:09:39]} {[%emt 00:19:28]} Qd6 {[%clk
01:15:14]} {[%emt 00:07:58]} 14. Be1 {[%clk 00:54:50]} {[%emt 00:15:19]} a6
{[%clk 01:08:21]} {[%emt 00:07:23]} 15. Be2 {[%clk 00:52:39]} {[%emt 00:02:40]}
cxd4 {[%clk 00:51:53]} {[%emt 00:16:59]} 16. exd4 {[%clk 00:52:51]} {[%emt
00:00:18]} b5 {[%clk 00:52:19]} {[%emt 00:00:04]} 17. Bf3 {[%clk 00:49:28]}
{[%emt 00:03:52]} Ne7 {[%clk 00:48:03]} {[%emt 00:04:45]} 18. Qd3 {[%clk
00:46:24]} {[%emt 00:03:35]} Rad8 {[%clk 00:35:55]} {[%emt 00:12:38]} 19. Bf2
{[%clk 00:43:33]} {[%emt 00:03:21]} Qe6 {[%clk 00:30:05]} {[%emt 00:06:20]} 20.
g4 {[%clk 00:38:05]} {[%emt 00:05:58]} Ng6 {[%clk 00:25:29]} {[%emt 00:05:07]}
21. Bg3 {[%clk 00:21:32]} {[%emt 00:17:03]} Qb6 {[%clk 00:25:21]} {[%emt
00:00:38]} 22. Rfe1 {[%clk 00:16:00]} {[%emt 00:06:02]} Ne4 {[%clk 00:19:37]}
{[%emt 00:06:14]} 23. Nxe4 {[%clk 00:12:45]} {[%emt 00:03:45]} dxe4 {[%clk
00:19:59]} {[%emt 00:00:07]} 24. Bxe4 {[%clk 00:13:04]} {[%emt 00:00:12]} Rxd4
{[%clk 00:18:58]} {[%emt 00:01:31]} 25. Bf2 {[%clk 00:11:19]} {[%emt 00:02:15]}
Bc5 {[%clk 00:05:36]} {[%emt 00:13:52]} 26. Bxd4 {[%clk 00:10:30]} {[%emt
00:01:19]} Bxd4+ {[%clk 00:06:00]} {[%emt 00:00:07]} 27. Kf1 {[%clk 00:10:26]}
{[%emt 00:00:33]} Nxf4 {[%clk 00:06:16]} {[%emt 00:00:14]} 28. Bxh7+ {[%clk
00:10:34]} {[%emt 00:00:22]} 1-0

[Event "Open Gent FIDE-rated 2023"]
[Site "Gent, Belgium"]
[Date "2023.07.17"]
[Round "6.4"]
[White "Ikonnikov, Vyacheslav"]
[Black "Dreelinck, Jacob"]
[Result "1/2-1/2"]
[TimeControl "90'+30''"]
[WhiteTitle "GM"]
[WhiteElo "2467"]
[BlackElo "2089"]

1. d4 {[%clk 01:30:55]} {[%emt 00:00:04]} Nf6 {[%clk 01:30:56]} {[%emt
00:00:05]} 2. c4 {[%clk 01:30:34]} {[%emt 00:00:51]} g6 {[%clk 01:31:12]}
{[%emt 00:00:14]} 3. Nc3 {[%clk 01:30:44]} {[%emt 00:00:20]} Bg7 {[%clk
01:31:37]} {[%emt 00:00:05]} 4. e4 {[%clk 01:30:52]} {[%emt 00:00:22]} d6
{[%clk 01:32:03]} {[%emt 00:00:04]} 5. Nf3 {[%clk 01:30:39]} {[%emt 00:00:43]}
O-O {[%clk 01:32:27]} {[%emt 00:00:06]} 6. Be2 {[%clk 01:30:55]} {[%emt
00:00:14]} e5 {[%clk 01:32:53]} {[%emt 00:00:05]} 7. d5 {[%clk 01:31:07]}
{[%emt 00:00:18]} Nbd7 {[%clk 01:33:18]} {[%emt 00:00:05]} 8. Be3 {[%clk
01:29:57]} {[%emt 00:01:40]} Ng4 {[%clk 01:31:41]} {[%emt 00:02:08]} 9. Bg5
{[%clk 01:29:32]} {[%emt 00:00:55]} f6 {[%clk 01:32:02]} {[%emt 00:00:09]} 10.
Bh4 {[%clk 01:29:54]} {[%emt 00:00:07]} Nh6 {[%clk 01:30:47]} {[%emt 00:01:45]}
11. Nd2 {[%clk 01:28:56]} {[%emt 00:01:28]} Nf7 {[%clk 01:29:53]} {[%emt
00:01:24]} 12. b4 {[%clk 01:24:43]} {[%emt 00:04:43]} Bh6 {[%clk 01:26:38]}
{[%emt 00:03:45]} 13. Nb3 {[%clk 01:22:02]} {[%emt 00:03:11]} Ng5 {[%clk
01:18:17]} {[%emt 00:08:51]} 14. O-O {[%clk 00:47:55]} {[%emt 00:34:36]} f5
{[%clk 01:17:28]} {[%emt 00:01:20]} 15. Kh1 {[%clk 00:48:19]} {[%emt 00:00:06]}
Nf6 {[%clk 01:10:55]} {[%emt 00:07:03]} 16. f3 {[%clk 00:48:42]} {[%emt
00:00:07]} Nf7 {[%clk 01:07:35]} {[%emt 00:03:51]} 17. Qc2 {[%clk 00:47:49]}
{[%emt 00:01:23]} g5 {[%clk 01:03:25]} {[%emt 00:04:40]} 18. Bf2 {[%clk
00:37:44]} {[%emt 00:10:35]} f4 {[%clk 01:00:40]} {[%emt 00:03:15]} 19. Nd2
{[%clk 00:35:29]} {[%emt 00:02:45]} g4 {[%clk 00:55:12]} {[%emt 00:05:59]} 20.
fxg4 {[%clk 00:35:35]} {[%emt 00:00:23]} Nxg4 {[%clk 00:54:11]} {[%emt
00:01:31]} 21. Bxg4 {[%clk 00:32:04]} {[%emt 00:04:00]} Bxg4 {[%clk 00:54:35]}
{[%emt 00:00:06]} 22. Nf3 {[%clk 00:32:30]} {[%emt 00:00:04]} Kh8 {[%clk
00:53:42]} {[%emt 00:01:24]} 23. Ne2 {[%clk 00:32:47]} {[%emt 00:00:13]} Rg8
{[%clk 00:51:20]} {[%emt 00:02:52]} 24. Neg1 {[%clk 00:33:10]} {[%emt
00:00:06]} a5 {[%clk 00:51:00]} {[%emt 00:00:51]} 25. a3 {[%clk 00:33:15]}
{[%emt 00:00:26]} Qf6 {[%clk 00:47:34]} {[%emt 00:03:55]} 26. Bh4 {[%clk
00:22:13]} {[%emt 00:11:30]} Qg6 {[%clk 00:47:53]} {[%emt 00:00:13]} 27. c5
{[%clk 00:22:05]} {[%emt 00:00:38]} Bg5 {[%clk 00:45:41]} {[%emt 00:02:42]} 28.
Be1 {[%clk 00:17:34]} {[%emt 00:05:00]} Be7 {[%clk 00:35:58]} {[%emt 00:10:13]}
29. bxa5 {[%clk 00:14:45]} {[%emt 00:03:19]} dxc5 {[%clk 00:29:38]} {[%emt
00:06:51]} 30. Bc3 {[%clk 00:15:02]} {[%emt 00:00:13]} Bd6 {[%clk 00:29:42]}
{[%emt 00:00:26]} 31. Rab1 {[%clk 00:15:01]} {[%emt 00:00:30]} b6 {[%clk
00:28:09]} {[%emt 00:02:04]} 32. axb6 {[%clk 00:14:02]} {[%emt 00:01:30]} Bxf3
{[%clk 00:26:10]} {[%emt 00:02:29]} 33. Nxf3 {[%clk 00:11:51]} {[%emt
00:02:40]} Rxa3 {[%clk 00:23:38]} {[%emt 00:03:02]} 34. Nh4 {[%clk 00:11:50]}
{[%emt 00:00:30]} Qg4 {[%clk 00:23:14]} {[%emt 00:00:55]} 35. b7 {[%clk
00:10:50]} {[%emt 00:01:30]} c6 {[%clk 00:23:32]} {[%emt 00:00:12]} 36. Bb2
{[%clk 00:07:02]} {[%emt 00:04:18]} Rg3 {[%clk 00:14:03]} {[%emt 00:09:59]} 37.
hxg3 {[%clk 00:06:54]} {[%emt 00:00:38]} fxg3 {[%clk 00:14:21]} {[%emt
00:00:12]} 38. Rxf7 {[%clk 00:07:17]} {[%emt 00:00:07]} c4 {[%clk 00:12:44]}
{[%emt 00:02:08]} 39. Kg1 {[%clk 00:06:29]} {[%emt 00:01:18]} Qxh4 {[%clk
00:12:33]} {[%emt 00:00:42]} 40. Kf1 {[%clk 00:06:14]} {[%emt 00:00:44]} Qh1+
{[%clk 00:12:06]} {[%emt 00:00:57]} 41. Ke2 {[%clk 00:06:40]} {[%emt 00:00:04]}
Qxg2+ {[%clk 00:12:23]} {[%emt 00:00:12]} 42. Kd1 {[%clk 00:07:06]} {[%emt
00:00:04]} Qh1+ {[%clk 00:10:17]} {[%emt 00:02:36]} 43. Kd2 {[%clk 00:04:52]}
{[%emt 00:02:43]} Bb4+ {[%clk 00:10:37]} {[%emt 00:00:12]} 44. Bc3 {[%clk
00:03:48]} {[%emt 00:01:34]} Qh6+ {[%clk 00:07:53]} {[%emt 00:03:14]} 45. Ke2
{[%clk 00:02:50]} {[%emt 00:01:28]} Qh2+ {[%clk 00:06:54]} {[%emt 00:01:30]} 46.
Kd1 {[%clk 00:02:46]} {[%emt 00:00:33]} Qh1+ {[%clk 00:06:24]} {[%emt
00:01:00]} 47. Kd2 {[%clk 00:02:53]} {[%emt 00:00:23]} Qh6+ {[%clk 00:06:30]}
{[%emt 00:00:25]} 48. Kd1 {[%clk 00:02:18]} {[%emt 00:01:05]} Qh1+ {[%clk
00:06:23]} {[%emt 00:00:36]} 49. Kd2 {[%clk 00:02:14]} {[%emt 00:00:33]}
1/2-1/2